bitfinex-derivatives/quotes_BTCF0:USTF0_20250614
["timestamp","ask_amount","ask_price","bid_price","bid_amount"]
[1749885030414,0.3710188,105040.0,105030.0,1.73102032]
[1749885030607,0.3710188,105040.0,105030.0,1.74425045]
[1749885030807,0.3710188,105040.0,105030.0,1.72937276]
[1749885031013,0.3710188,105040.0,105030.0,1.73102032]
[1749885031315,0.3710188,105040.0,105030.0,1.74425045]
[1749885031613,0.3710188,105040.0,105030.0,1.74425042]
[1749885031914,0.3710188,105040.0,105030.0,1.74425043]
[1749885032115,0.3710188,105040.0,105030.0,0.78605046]
[1749885032409,0.3710188,105040.0,105030.0,1.72905279]
[1749885032606,0.3710188,105040.0,105030.0,1.74393046]
[1749885032910,0.25675685,105040.0,105030.0,1.74393046]
[1749885033116,0.3710188,105040.0,105030.0,1.74393046]
[1749885033415,0.3710188,105040.0,105030.0,1.74392934]
[1749885033610,0.3710188,105040.0,105030.0,1.74392931]
[1749885033917,0.3710188,105040.0,105030.0,1.74392929]
[1749885034113,0.3710188,105040.0,105030.0,1.74393186]
[1749885034512,0.3710188,105040.0,105030.0,1.74393247]
[1749885035415,0.3400188,105040.0,105030.0,1.7290548]
[1749885035618,0.3400188,105040.0,105030.0,1.74393247]
[1749885035816,0.3400188,105040.0,105030.0,1.74393246]
[1749885036016,0.3400188,105040.0,105030.0,1.74393245]
[1749885036316,0.3400188,105040.0,105030.0,1.74393121]
[1749885036507,0.3400188,105040.0,105030.0,1.74393185]
[1749885036709,0.3400188,105040.0,105030.0,0.78605182]
[1749885036911,0.3400188,105040.0,105030.0,1.74333184]
[1749885037216,0.3400188,105040.0,105030.0,1.72845608]
[1749885037419,0.3400188,105040.0,105030.0,1.73010033]
[1749885037617,0.3400188,105040.0,105030.0,1.74333316]
[1749885037815,0.3400188,105040.0,105030.0,1.7433331]
[1749885038118,0.3400188,105040.0,105030.0,0.78605439]
[1749885038418,0.3400188,105040.0,105030.0,1.74181452]
[1749885038609,0.3400188,105040.0,105030.0,1.80129328]
[1749885038810,0.3711188,105040.0,105030.0,1.80129326]
[1749885039117,0.3711188,105040.0,105030.0,1.80132255]
[1749885039312,0.3711188,105040.0,105030.0,1.78644487]
[1749885039812,0.3711188,105040.0,105030.0,1.80132251]
[1749885040010,0.3711188,105040.0,105030.0,1.77318204]
[1749885040206,0.3711188,105040.0,105030.0,1.80132256]
[1749885040417,0.3711188,105040.0,105030.0,1.78644487]
[1749885040617,0.3711188,105040.0,105030.0,1.78805972]
[1749885040819,0.3711188,105040.0,105030.0,1.78644483]
[1749885041018,0.3711188,105040.0,105030.0,1.78805972]
[1749885041217,0.3711188,105040.0,105030.0,1.80132256]
[1749885041413,0.3711188,105040.0,105030.0,1.78805972]
[1749885041613,0.3711188,105040.0,105030.0,1.80132256]
[1749885041917,0.3711188,105040.0,105030.0,1.77318204]
[1749885042124,0.3711188,105040.0,105030.0,1.78644486]
[1749885042417,0.3711188,105040.0,105030.0,1.80132254]
[1749885042613,0.3711188,105040.0,105030.0,1.80132188]
[1749885043120,0.3711188,105040.0,105030.0,1.78644421]
[1749885043319,0.3711188,105040.0,105030.0,1.80132188]
[1749885043719,0.3711188,105040.0,105030.0,1.80132123]
[1749885043913,0.3711188,105040.0,105030.0,1.80131927]
[1749885044217,0.25685685,105040.0,105030.0,1.80131929]
[1749885044418,0.3711188,105040.0,105030.0,1.78644162]
[1749885044715,0.3711188,105040.0,105030.0,1.78644159]
[1749885044920,0.3711188,105040.0,105030.0,1.80131926]
[1749885045420,0.3711188,105040.0,105030.0,1.78644163]
[1749885045720,0.3711188,105040.0,105030.0,1.77318204]
[1749885046418,0.3711188,105040.0,105030.0,1.78805971]
[1749885046620,0.3711188,105040.0,105030.0,1.74183206]
[1749885046917,0.3711188,105040.0,105030.0,1.7285725]
[1749885047122,0.3711188,105040.0,105030.0,1.74345017]
[1749885047324,0.3711188,105040.0,105030.0,1.75670977]
[1749885047517,0.3711188,105040.0,105030.0,1.74345017]
[1749885047924,0.3711188,105040.0,105030.0,1.75670974]
[1749885048426,0.3711188,105040.0,105030.0,1.74183211]
[1749885048625,0.3711188,105040.0,105030.0,1.7285725]
[1749885048821,0.3711188,105040.0,105030.0,1.74345017]
[1749885049121,0.3711188,105040.0,105030.0,1.7285725]
[1749885049522,0.3711188,105040.0,105030.0,1.74345017]
[1749885049822,0.3711188,105040.0,105030.0,1.74183205]
[1749885050028,0.3711188,105040.0,105030.0,1.7418321]
[1749885050227,0.3711188,105040.0,105030.0,1.75670977]
[1749885050428,0.3711188,105040.0,105030.0,1.75670976]
[1749885050726,0.3711188,105040.0,105030.0,1.80134033]
[1749885050928,0.3711188,105040.0,105030.0,1.78808098]
[1749885051127,0.45995729,105040.0,105030.0,1.80137921]
[1749885051328,0.45995729,105040.0,105030.0,1.78650256]
[1749885051719,0.45995729,105040.0,105030.0,0.84562056]
[1749885051921,0.45995729,105040.0,105030.0,1.80134056]
[1749885052121,0.45995729,105040.0,105030.0,1.78646255]
[1749885052417,0.45995729,105040.0,105030.0,1.78804107]
[1749885052824,0.45995729,105040.0,105030.0,1.80134053]
[1749885053016,0.45995729,105040.0,105030.0,1.78646251]
[1749885053221,0.3711188,105040.0,105030.0,1.80134051]
[1749885053422,0.45995729,105040.0,105030.0,1.77316307]
[1749885053724,0.45995729,105040.0,105030.0,1.78647015]
[1749885053924,0.45995729,105040.0,105030.0,1.78804107]
[1749885054125,0.45995729,105040.0,105030.0,1.80134821]
[1749885054320,0.45995729,105040.0,105030.0,1.80134822]
[1749885054525,0.45995729,105040.0,105030.0,1.77316307]
[1749885054726,0.45995729,105040.0,105030.0,1.78804107]
[1749885054926,0.45995729,105040.0,105030.0,1.77316307]
[1749885055128,0.45995729,105040.0,105030.0,0.83075016]
[1749885055326,0.49135729,105040.0,105030.0,0.83075017]
[1749885055630,0.96641924,105040.0,105030.0,0.30981326]
[1749885055929,0.96641924,105040.0,105030.0,1.05396773]
[1749885056130,0.96641924,105040.0,105030.0,1.04050421]
[1749885056323,0.96641924,105040.0,105030.0,1.02562471]
[1749885056523,0.96641924,105040.0,105030.0,0.28861271]
[1749885056828,0.85215729,105040.0,105030.0,1.22945315]
[1749885057129,0.85215729,105040.0,105030.0,1.24433263]
[1749885057331,0.85215729,105040.0,105030.0,0.27511874]
[1749885057523,0.85215729,105040.0,105030.0,1.24438119]
[1749885057725,0.85215729,105040.0,105030.0,1.22949494]
[1749885057931,0.85215729,105040.0,105030.0,1.24438114]
[1749885058127,0.85215729,105040.0,105030.0,1.21603941]
[1749885058431,0.85215729,105040.0,105030.0,1.24438118]
[1749885059131,0.96641924,105040.0,105030.0,1.24490119]
[1749885059334,0.85215729,105040.0,105030.0,1.24490119]
[1749885059535,0.85215729,105040.0,105030.0,1.24489419]
[1749885059834,0.85215729,105040.0,105030.0,1.23004561]
[1749885060035,0.85215729,105040.0,105030.0,1.24492487]
[1749885060230,0.85215729,105040.0,105030.0,0.46901054]
[1749885060436,0.85215729,105040.0,105030.0,0.46901058]
[1749885061035,0.85215729,105040.0,105030.0,0.44063941]
[1749885061230,0.85215729,105040.0,105030.0,0.45551868]
[1749885061437,0.85215729,105040.0,105030.0,0.46901102]
[1749885061637,0.85215729,105040.0,105030.0,0.44063941]
[1749885061842,0.96641924,105040.0,105030.0,0.2886105]
[1749885062034,0.96641924,105040.0,105030.0,0.46901053]
[1749885062234,0.96641924,105040.0,105030.0,0.46901055]
[1749885062435,0.96641924,105040.0,105030.0,0.44063941]
[1749885062732,0.96641924,105040.0,105030.0,0.4690105]
[1749885062931,0.96641924,105040.0,105030.0,0.44063941]
[1749885063136,0.96641924,105040.0,105030.0,0.46901096]
[1749885063338,0.96641924,105040.0,105030.0,0.26380144]
[1749885063637,0.96641924,105040.0,105030.0,0.2651842]
[1749885063846,0.96641924,105040.0,105030.0,0.26382121]
[1749885064139,0.96641924,105040.0,105030.0,0.26383242]
[1749885064344,0.96641924,105040.0,105030.0,0.27871199]
[1749885064541,0.96641924,105040.0,105030.0,0.45416723]
[1749885064837,0.96641924,105040.0,105030.0,0.44063951]
[1749885065036,0.96641924,105040.0,105030.0,0.45417275]
[1749885065344,0.96641924,105040.0,105030.0,0.46905228]
[1749885065538,0.96641924,105040.0,105030.0,0.45417273]
[1749885065732,0.96641924,105040.0,105030.0,0.46902834]
[1749885065937,0.96641924,105040.0,105030.0,0.45551906]
[1749885066132,0.96641924,105040.0,105030.0,0.08341403]
[1749885066343,0.1903347,105030.0,105020.0,0.01487968]
[1749885066545,0.9632648,105030.0,105020.0,0.01487968]
[1749885066840,0.8744586,105030.0,105020.0,0.01487968]
[1749885067346,0.96322307,105030.0,105020.0,0.01487968]
[1749885067533,0.96322307,105030.0,105020.0,0.01587968]
[1749885068342,0.96319364,105030.0,105020.0,0.01587968]
[1749885070145,0.8744586,105030.0,105020.0,0.01587968]
[1749885071434,1.7457946,105030.0,105020.0,0.01587968]
[1749885071641,1.9264746,105030.0,105020.0,0.01587968]
[1749885072340,2.01512002,105030.0,105020.0,0.01587968]
[1749885072738,1.14390402,105030.0,105020.0,0.01587968]
[1749885073134,0.91538012,105030.0,105020.0,0.01587968]
[1749885073344,1.14390402,105030.0,105020.0,0.01587968]
[1749885074341,0.96310402,105030.0,105020.0,0.01587968]
[1749885074547,1.14390402,105030.0,105020.0,0.01587968]
[1749885075747,0.73458012,105030.0,105020.0,0.20623258]
[1749885075949,1.14390402,105030.0,105020.0,0.20623258]
[1749885076149,1.0552586,105030.0,105020.0,0.20623258]
[1749885076542,1.14390402,105030.0,105020.0,0.20623258]
[1749885077350,0.96310402,105030.0,105020.0,0.20623258]
[1749885077649,1.14390402,105030.0,105020.0,0.20623258]
[1749885078351,1.14390402,105030.0,105020.0,0.23472423]
[1749885078552,0.96310402,105030.0,105020.0,0.21989768]
[1749885078752,0.8744586,105030.0,105020.0,0.23470051]
[1749885079053,0.8744586,105030.0,105020.0,0.23470047]
[1749885079245,0.8744586,105030.0,105020.0,0.21987409]
[1749885079447,0.8744586,105030.0,105020.0,0.23466523]
[1749885079853,0.8744586,105030.0,105020.0,0.23880358]
[1749885080045,0.8744586,105030.0,105020.0,0.23880361]
[1749885080448,0.8744586,105030.0,105020.0,0.02001803]
[1749885080647,0.8744586,105030.0,105020.0,0.22397718]
[1749885080853,0.8744586,105030.0,105020.0,0.21037083]
[1749885081352,0.8744586,105030.0,105020.0,0.22398968]
[1749885081549,0.8744586,105030.0,105020.0,0.22518677]
[1749885081755,0.8744586,105030.0,105020.0,0.23880574]
[1749885082052,0.8744586,105030.0,105020.0,0.23880531]
[1749885082349,0.8744586,105030.0,105020.0,0.23880533]
[1749885082855,0.8744586,105030.0,105020.0,0.22518677]
[1749885083056,0.8744586,105030.0,105020.0,0.22398983]
[1749885083349,0.8744586,105030.0,105020.0,0.23880576]
[1749885083552,0.8744586,105030.0,105020.0,0.22398979]
[1749885083755,0.8744586,105030.0,105020.0,0.26557392]
[1749885083960,0.8744586,105030.0,105020.0,0.2667709]
[1749885084249,0.96310402,105030.0,105020.0,0.25195496]
[1749885084549,0.96310402,105030.0,105020.0,0.28040983]
[1749885084751,0.96310402,105030.0,105020.0,0.2667709]
[1749885084952,0.96310402,105030.0,105020.0,0.26559385]
[1749885085154,0.96310402,105030.0,105020.0,0.25195496]
[1749885085357,0.96310402,105030.0,105020.0,0.28040982]
[1749885085559,0.96310402,105030.0,105020.0,0.26559389]
[1749885085747,0.96310402,105030.0,105020.0,0.25195496]
[1749885085948,0.96310402,105030.0,105020.0,0.28041859]
[1749885086248,0.96310402,105030.0,105020.0,0.25195496]
[1749885086552,0.96310402,105030.0,105020.0,0.28045816]
[1749885086751,0.96310402,105030.0,105020.0,0.26560261]
[1749885086956,0.96310402,105030.0,105020.0,0.28046066]
[1749885087358,0.96310402,105030.0,105020.0,0.28046069]
[1749885087559,0.96310402,105030.0,105020.0,0.26560514]
[1749885087759,0.96310402,105030.0,105020.0,0.28046065]
[1749885087954,0.96310402,105030.0,105020.0,0.28046066]
[1749885088157,0.96310402,105030.0,105020.0,0.25195496]
[1749885088351,0.96310402,105030.0,105020.0,0.26560513]
[1749885088653,0.96310402,105030.0,105020.0,0.2656]
[1749885088854,0.96310402,105030.0,105020.0,0.26681051]
[1749885089051,0.96310402,105030.0,105020.0,0.25195496]
[1749885089251,0.96310402,105030.0,105020.0,0.26560003]
[1749885089451,0.96310402,105030.0,105020.0,0.26681051]
[1749885089651,0.96310402,105030.0,105020.0,0.26559998]
[1749885090154,0.96310402,105030.0,105020.0,0.25195496]
[1749885090350,0.96310402,105030.0,105020.0,0.07645771]
[1749885090552,0.96310402,105030.0,105020.0,0.09010277]
[1749885090747,0.96310402,105030.0,105020.0,0.09010273]
[1749885090947,0.96310402,105030.0,105020.0,0.09010359]
[1749885091153,0.96310402,105030.0,105020.0,0.09014634]
[1749885091356,0.96310402,105030.0,105020.0,0.0764579]
[1749885091556,0.96310402,105030.0,105020.0,0.07645796]
[1749885092053,0.96310402,105030.0,105020.0,0.08602242]
[1749885092253,0.96310402,105030.0,105020.0,0.26151952]
[1749885092455,0.96310402,105030.0,105020.0,0.27633248]
[1749885092760,0.96310402,105030.0,105020.0,0.27632063]
[1749885093057,0.96310402,105030.0,105020.0,0.25195506]
[1749885093255,0.96310402,105030.0,105020.0,0.28045902]
[1749885093455,0.96310402,105030.0,105020.0,0.26561155]
[1749885093656,0.96310402,105030.0,105020.0,0.28045898]
[1749885093858,0.96310402,105030.0,105020.0,0.28043284]
[1749885094058,0.96310402,105030.0,105020.0,0.26558538]
[1749885094357,0.96310402,105030.0,105020.0,0.26680248]
[1749885094564,0.96310402,105030.0,105020.0,0.28044786]
[1749885094956,0.96310402,105030.0,105020.0,0.26560045]
[1749885095263,0.96310402,105030.0,105020.0,0.26680248]
[1749885095564,0.90130402,105030.0,105020.0,0.28046362]
[1749885095756,0.90130402,105030.0,105020.0,0.31336362]
[1749885096061,0.93150402,105030.0,105020.0,0.31342606]
[1749885096255,0.93150402,105030.0,105020.0,0.31342607]
[1749885096758,0.1903348,105030.0,105020.0,0.83293095]
[1749885096961,0.7796587,105030.0,105020.0,0.41904773]
[1749885097263,0.68360967,105030.0,105020.0,0.58636552]
[1749885097463,0.71530967,105030.0,105020.0,0.59992517]
[1749885097663,0.71530967,105030.0,105020.0,0.41912533]
[1749885097861,0.71530967,105030.0,105020.0,0.58504773]
[1749885098063,0.71530967,105030.0,105020.0,0.59992779]
[1749885098366,0.71530967,105030.0,105020.0,0.58636569]
[1749885098561,0.71530967,105030.0,105020.0,0.57148563]
[1749885098866,0.71530967,105030.0,105020.0,0.58636569]
[1749885099167,0.71530967,105030.0,105020.0,0.59992783]
[1749885099358,0.71530967,105030.0,105020.0,0.59992782]
[1749885099559,0.71530967,105030.0,105020.0,0.32502783]
[1749885099867,0.74660967,105030.0,105020.0,0.50590777]
[1749885100071,0.74660967,105030.0,105020.0,0.49234569]
[1749885100263,0.74660967,105030.0,105020.0,0.47746563]
[1749885100467,0.74660967,105030.0,105020.0,0.49234573]
[1749885100963,0.74660967,105030.0,105020.0,0.49098513]
[1749885101163,0.74660967,105030.0,105020.0,0.49234573]
[1749885101362,0.74660967,105030.0,105020.0,0.50586526]
[1749885101563,0.74660967,105030.0,105020.0,0.49234573]
[1749885101756,0.74660967,105030.0,105020.0,0.5057631]
[1749885101956,0.74660967,105030.0,105020.0,0.50576314]
[1749885102161,0.74660967,105030.0,105020.0,0.4922436]
[1749885102769,0.74660967,105030.0,105020.0,0.47746563]
[1749885102978,0.74660967,105030.0,105020.0,0.50576311]
[1749885103172,0.74660967,105030.0,105020.0,0.5057631]
[1749885103362,0.74660967,105030.0,105020.0,0.4922436]
[1749885103563,0.74660967,105030.0,105020.0,0.50576316]
[1749885103868,0.74660967,105030.0,105020.0,0.49224361]
[1749885104066,0.74660967,105030.0,105020.0,0.50574624]
[1749885104269,0.74660967,105030.0,105020.0,0.49096826]
[1749885104564,0.74660967,105030.0,105020.0,0.50574628]
[1749885104772,0.74660967,105030.0,105020.0,0.50574625]
[1749885105070,0.74660967,105030.0,105020.0,0.50578531]
[1749885105365,0.83525509,105030.0,105020.0,0.50578531]
[1749885105572,0.83525509,105030.0,105020.0,0.49098696]
[1749885105773,0.83525509,105030.0,105020.0,0.49098691]
[1749885106172,0.83525509,105030.0,105020.0,0.49098695]
[1749885106470,0.83525509,105030.0,105020.0,0.49098694]
[1749885106868,0.74660967,105030.0,105020.0,0.49098708]
[1749885107069,0.74660967,105030.0,105020.0,0.49098968]
[1749885107270,0.74660967,105030.0,105020.0,0.49099038]
[1749885107470,0.74660967,105030.0,105020.0,0.49099039]
[1749885107768,0.74660967,105030.0,105020.0,0.49099034]
[1749885107963,0.74660967,105030.0,105020.0,0.11975744]
[1749885108164,0.83525509,105030.0,105020.0,0.06160216]
[1749885108370,0.83525509,105030.0,105020.0,0.25607228]
[1749885108570,0.83525509,105030.0,105020.0,0.24248216]
[1749885108771,0.83525509,105030.0,105020.0,0.25609275]
[1749885108974,0.83525509,105030.0,105020.0,0.24248216]
[1749885109172,0.83525509,105030.0,105020.0,0.2560938]
[1749885109572,0.83525509,105030.0,105020.0,0.44644667]
[1749885110071,0.83525509,105030.0,105020.0,0.43283506]
[1749885110482,0.83525509,105030.0,105020.0,0.44644674]
[1749885110672,0.73368022,105030.0,105020.0,0.44762684]
[1749885110865,0.83525509,105030.0,105020.0,0.44644667]
[1749885111070,0.83525509,105030.0,105020.0,0.27088554]
[1749885111266,0.83525509,105030.0,105020.0,0.27088553]
[1749885111470,0.83525509,105030.0,105020.0,0.25727394]
[1749885111775,0.83525509,105030.0,105020.0,0.44762691]
[1749885111971,0.83525509,105030.0,105020.0,0.46125428]
[1749885112277,0.83525509,105030.0,105020.0,0.44762692]
[1749885112479,0.83525509,105030.0,105020.0,0.25611236]
[1749885112779,0.83525509,105030.0,105020.0,0.44646512]
[1749885112971,0.83525509,105030.0,105020.0,0.46125698]
[1749885113277,0.83525509,105030.0,105020.0,0.44762682]
[1749885113476,0.83525509,105030.0,105020.0,0.46125701]
[1749885113677,0.83525509,105030.0,105020.0,0.46125257]
[1749885113877,0.83525509,105030.0,105020.0,0.46124852]
[1749885114076,0.83525509,105030.0,105020.0,0.46124855]
[1749885114279,0.83525509,105030.0,105020.0,0.4464611]
[1749885114579,0.83525509,105030.0,105020.0,0.2803865]
[1749885114779,0.83525509,105030.0,105020.0,0.26559903]
[1749885114974,0.83525509,105030.0,105020.0,0.28038648]
[1749885115674,0.83525509,105030.0,105020.0,0.26559884]
[1749885115879,0.83525509,105030.0,105020.0,0.2667724]
[1749885116079,0.83525509,105030.0,105020.0,0.28041628]
[1749885116379,0.83525509,105030.0,105020.0,0.2667724]
[1749885116575,0.83525509,105030.0,105020.0,0.25195496]
[1749885116775,0.83525509,105030.0,105020.0,0.26559879]
[1749885116976,0.83525509,105030.0,105020.0,0.28041697]
[1749885117178,0.83525509,105030.0,105020.0,0.26677311]
[1749885117377,0.83525509,105030.0,105020.0,0.25195496]
[1749885117578,0.83525509,105030.0,105020.0,0.2653424]
[1749885117771,0.83525509,105030.0,105020.0,0.28016051]
[1749885117982,0.83525509,105030.0,105020.0,0.26534243]
[1749885118279,0.83525509,105030.0,105020.0,0.28016054]
[1749885118480,0.83525509,105030.0,105020.0,0.26677311]
[1749885118985,0.83525509,105030.0,105020.0,0.28016051]
[1749885119282,0.83525509,105030.0,105020.0,0.2801626]
[1749885119478,0.83525509,105030.0,105020.0,0.26534444]
[1749885119679,0.83525509,105030.0,105020.0,0.26677311]
[1749885119885,0.83525509,105030.0,105020.0,0.28016256]
[1749885120179,0.83525509,105030.0,105020.0,0.25195496]
[1749885120482,0.83525509,105030.0,105020.0,0.26534445]
[1749885120683,0.83525509,105030.0,105020.0,0.2801624]
[1749885120885,0.83525509,105030.0,105020.0,0.26677311]
[1749885121081,0.83525509,105030.0,105020.0,0.28016558]
[1749885121281,0.83525509,105030.0,105020.0,0.28016556]
[1749885121778,0.83525509,105030.0,105020.0,0.26534391]
[1749885121979,0.83525509,105030.0,105020.0,0.2653444]
[1749885122185,0.83525509,105030.0,105020.0,0.28016594]
[1749885122386,0.83525509,105030.0,105020.0,0.26534427]
[1749885122585,0.83525509,105030.0,105020.0,0.28015844]
[1749885122786,0.83525509,105030.0,105020.0,0.28015715]
[1749885122987,0.83525509,105030.0,105020.0,0.25195496]
[1749885123286,0.9622194,105030.0,105020.0,0.28015716]
[1749885123493,0.9622194,105030.0,105020.0,0.26677657]
[1749885123787,0.9622194,105030.0,105020.0,0.31285716]
[1749885123988,0.9622194,105030.0,105020.0,0.31285712]
[1749885124290,0.9622194,105030.0,105020.0,0.29947657]
[1749885124491,0.9622194,105030.0,105020.0,0.31285767]
[1749885124788,0.9622194,105030.0,105020.0,0.29803603]
[1749885124983,0.9622194,105030.0,105020.0,0.31285767]
[1749885125182,0.83525378,105030.0,105020.0,0.26678099]
[1749885125386,0.83525378,105030.0,105020.0,0.28016608]
[1749885125689,0.83525378,105030.0,105020.0,0.26678099]
[1749885125878,0.83525378,105030.0,105020.0,0.28016604]
[1749885126081,0.83525378,105030.0,105020.0,0.28016605]
[1749885126291,0.83525378,105030.0,105020.0,0.28016608]
[1749885126483,0.83525378,105030.0,105020.0,0.25195496]
[1749885126687,0.83525378,105030.0,105020.0,0.28018706]
[1749885126889,0.83525378,105030.0,105020.0,0.266802]
[1749885127085,0.83525378,105030.0,105020.0,0.26534001]
[1749885127286,0.83525378,105030.0,105020.0,0.266802]
[1749885127586,0.83525378,105030.0,105020.0,0.26534005]
[1749885127786,0.83525378,105030.0,105020.0,0.266802]
[1749885128289,0.83525378,105030.0,105020.0,0.25195496]
[1749885128487,0.83525378,105030.0,105020.0,0.26534004]
[1749885128789,0.83525378,105030.0,105020.0,0.266802]
[1749885129491,0.83525378,105030.0,105020.0,0.28018709]
[1749885129680,0.83525378,105030.0,105020.0,0.28018705]
[1749885129876,0.83525378,105030.0,105020.0,0.26534001]
[1749885130283,0.83525378,105030.0,105020.0,0.28018705]
[1749885130583,0.83525378,105030.0,105020.0,0.28019219]
[1749885131382,0.83525378,105030.0,105020.0,0.28019222]
[1749885131584,0.83525378,105030.0,105020.0,0.28019219]
[1749885131983,0.83525378,105030.0,105020.0,0.25195496]
[1749885132191,0.83525378,105030.0,105020.0,0.26534516]
[1749885132488,0.83525378,105030.0,105020.0,0.28017948]
[1749885132885,0.83525378,105030.0,105020.0,0.25046558]
[1749885133192,0.83525378,105030.0,105020.0,0.26530424]
[1749885133394,0.83525378,105030.0,105020.0,0.26530562]
[1749885133583,0.83525378,105030.0,105020.0,0.06155671]
[1749885133783,0.83525378,105030.0,105020.0,0.0601185]
[1749885134089,0.83525378,105030.0,105020.0,0.0749526]
[1749885134283,0.83525378,105030.0,105020.0,0.04672248]
[1749885134483,0.83525378,105030.0,105020.0,0.07495232]
[1749885134680,0.83525378,105030.0,105020.0,0.06011809]
[1749885134891,0.83525378,105030.0,105020.0,0.07495232]
[1749885135190,0.83525378,105030.0,105020.0,0.07494516]
[1749885135886,0.83525378,105030.0,105020.0,0.07494201]
[1749885136185,0.83525378,105030.0,105020.0,0.07494206]
[1749885136689,0.83525378,105030.0,105020.0,0.07494202]
[1749885136989,0.83525378,105030.0,105020.0,0.0749742]
[1749885137179,0.83525378,105030.0,105020.0,0.04672248]
[1749885137381,0.83525378,105030.0,105020.0,0.07498015]
[1749885137682,0.83525378,105030.0,105020.0,0.05741388]
[1749885138287,0.83525378,105030.0,105020.0,0.07084184]
[1749885138592,0.83525378,105030.0,105020.0,0.07084133]
[1749885138888,0.83525378,105030.0,105020.0,0.02925718]
[1749885139191,0.83525378,105030.0,105020.0,0.07091668]
[1749885139489,0.83525378,105030.0,105020.0,0.07091447]
[1749885139490,1.01573378,105030.0,105020.0,0.07091447]
[1749885139885,0.92708836,105030.0,105020.0,0.07091246]
[1749885140085,0.92708836,105030.0,105020.0,0.0709125]
[1749885140585,1.01600555,105030.0,105020.0,0.0709125]
[1749885140790,0.92708836,105030.0,105020.0,0.05748704]
[1749885140994,0.92708836,105030.0,105020.0,0.05748711]
[1749885141190,1.04549372,105030.0,105020.0,0.07092659]
[1749885141489,1.04549372,105030.0,105020.0,0.0426595]
[1749885141689,1.04549372,105030.0,105020.0,0.05617854]
[1749885141888,1.04549372,105030.0,105020.0,0.05748746]
[1749885142086,1.04549372,105030.0,105020.0,0.0426595]
[1749885142289,1.04549372,105030.0,105020.0,0.07101322]
[1749885142481,1.04549372,105030.0,105020.0,0.07102494]
[1749885142991,1.04549372,105030.0,105020.0,0.07102495]
[1749885143492,1.04549372,105030.0,105020.0,0.05749921]
[1749885143690,1.04549372,105030.0,105020.0,0.0426595]
[1749885143988,1.04549372,105030.0,105020.0,0.05620104]
[1749885144193,0.94392016,105030.0,105020.0,0.07104299]
[1749885144390,1.04549372,105030.0,105020.0,0.071043]
[1749885144596,1.04549372,105030.0,105020.0,0.05620108]
[1749885144792,1.04549372,105030.0,105020.0,0.06163977]
[1749885144998,1.04549372,105030.0,105020.0,0.07518129]
[1749885145198,1.04549372,105030.0,105020.0,0.06163977]
[1749885145394,1.04549372,105030.0,105020.0,0.07518133]
[1749885145696,1.04549372,105030.0,105020.0,0.0752357]
[1749885145897,1.04549372,105030.0,105020.0,0.06039373]
[1749885146296,1.04549372,105030.0,105020.0,0.06040173]
[1749885146493,1.04549372,105030.0,105020.0,0.04679785]
[1749885146697,1.04549372,105030.0,105020.0,0.0752459]
[1749885146891,1.04549372,105030.0,105020.0,0.001]
[1749885147295,1.17253284,105030.0,105020.0,0.01584196]
[1749885147497,1.17253284,105030.0,105020.0,0.01460608]
[1749885147696,1.17253284,105030.0,105020.0,0.029448]
[1749885147897,1.17253284,105030.0,105020.0,0.01584196]
[1749885148092,1.17253284,105030.0,105020.0,0.02944808]
[1749885148294,1.17253284,105030.0,105020.0,0.02944807]
[1749885148593,1.17253284,105030.0,105020.0,0.001]
[1749885148799,1.17253284,105030.0,105020.0,0.01588234]
[1749885148998,1.17253284,105030.0,105020.0,0.0294884]
[1749885149402,1.17253284,105030.0,105020.0,0.02948844]
[1749885149701,1.17253284,105030.0,105020.0,0.001]
[1749885149999,0.99205284,105030.0,105020.0,0.02002069]
[1749885150198,1.94845284,105030.0,105020.0,0.01874442]
[1749885150396,1.94845284,105030.0,105020.0,0.03362676]
[1749885150701,1.94845284,105030.0,105020.0,0.01874434]
[1749885150898,1.94841284,105030.0,105020.0,0.04391748]
[1749885151099,1.94841284,105030.0,105020.0,0.03362674]
[1749885151290,1.94841284,105030.0,105020.0,0.0439175]
[1749885151494,1.94841284,105030.0,105020.0,0.03362672]
[1749885151695,1.94841284,105030.0,105020.0,0.04391744]
[1749885152097,1.94841284,105030.0,105020.0,0.04391747]
[1749885152397,1.94841284,105030.0,105020.0,0.04391746]
[1749885152599,1.94841284,105030.0,105020.0,0.04391749]
[1749885152794,1.94841284,105030.0,105020.0,0.04391751]
[1749885152995,1.94841284,105030.0,105020.0,0.04391734]
[1749885153195,1.94841284,105030.0,105020.0,0.04391724]
[1749885153703,1.94841284,105030.0,105020.0,0.0439174]
[1749885154000,1.94841284,105030.0,105020.0,0.02903298]
[1749885154001,0.99205284,105030.0,105020.0,0.02903298]
[1749885154194,1.94817284,105030.0,105020.0,0.04391489]
[1749885154396,1.94817284,105030.0,105020.0,0.03362465]
[1749885154601,1.94817284,105030.0,105020.0,0.04391489]
[1749885154790,1.94817284,105030.0,105020.0,0.01874225]
[1749885155103,1.94817284,105030.0,105020.0,0.04391483]
[1749885155299,1.94817284,105030.0,105020.0,0.03031095]
[1749885155598,1.94817284,105030.0,105020.0,0.03362458]
[1749885155802,1.94817284,105030.0,105020.0,0.04391485]
[1749885156001,1.94817284,105030.0,105020.0,0.03031095]
[1749885156202,1.94817284,105030.0,105020.0,0.03360355]
[1749885156404,1.94817284,105030.0,105020.0,0.03360358]
[1749885156703,1.94817284,105030.0,105020.0,0.03360357]
[1749885156907,1.94817284,105030.0,105020.0,0.03360371]
[1749885157292,1.94817284,105030.0,105020.0,0.00513835]
[1749885157496,1.94817284,105030.0,105020.0,0.03360358]
[1749885157795,1.94817284,105030.0,105020.0,0.03360359]
[1749885157992,0.99205284,105030.0,105020.0,0.0187212]
[1749885158191,1.94817284,105030.0,105020.0,0.03360354]
[1749885158397,1.94817284,105030.0,105020.0,0.04384249]
[1749885158596,1.94817284,105030.0,105020.0,0.04384221]
[1749885158900,1.94817284,105030.0,105020.0,0.04384216]
[1749885159204,0.99205284,105030.0,105020.0,0.04377999]
[1749885159404,1.76676748,105030.0,105020.0,0.11798539]
[1749885159599,1.76676748,105030.0,105020.0,0.18318539]
[1749885159898,1.76676748,105030.0,105020.0,0.18317865]
[1749885160102,1.76676748,105030.0,105020.0,0.18317858]
[1749885160303,1.76676748,105030.0,105020.0,0.16971641]
[1749885160503,1.76676748,105030.0,105020.0,0.18317852]
[1749885160706,1.76676748,105030.0,105020.0,0.18317864]
[1749885161208,1.63973519,105030.0,105020.0,0.16829727]
[1749885161504,1.63973519,105030.0,105020.0,0.18317862]
[1749885161906,1.63973519,105030.0,105020.0,0.18317847]
[1749885162109,1.63973519,105030.0,105020.0,0.17290462]
[1749885162300,1.63973519,105030.0,105020.0,0.18317845]
[1749885162496,1.63973519,105030.0,105020.0,0.17290461]
[1749885162708,1.63973519,105030.0,105020.0,0.18317859]
[1749885162905,1.63973519,105030.0,105020.0,0.16829724]
[1749885163105,1.63973519,105030.0,105020.0,0.1682971]
[1749885163302,1.63973519,105030.0,105020.0,0.1548319]
[1749885163508,1.63973519,105030.0,105020.0,0.16971324]
[1749885163805,1.63973519,105030.0,105020.0,0.1548319]
[1749885164011,1.63973519,105030.0,105020.0,0.16971324]
[1749885164307,1.63973519,105030.0,105020.0,0.17290464]